Cogmind - Beta 13 @@@ ROGUE MODE // 2024.08.03 @ 17:40:57 Player: yam Result: Self-destructed Performance ------------- Evolutions (3) 1500 Regions Visited (5) 1000 Robots Destroyed (19) 95 Value Destroyed (486) 486 Prototype IDs (0) 0 Alien Tech Used (0) 0 Bonus (42) 42 TOTAL SCORE: 3123 Bonus ------- High Alert Combat Kills 11 Follower Combat Kills 44 Friendly Fire -13 Cogmind --------- Core Integrity 643/700 Matter 283/300 Energy 88/100 System Corruption 0% Temperature Warning (363) Movement Core (150) Ox2 Location -7/Factory Parts ------- > --- POWER (1) -------- (None) > --- PROPULSION (3) --- (None) > --- UTILITY (6) ------ Scrap Engine Small Storage Unit Signal Interpreter Seismic Detector > --- WEAPON (3) ------- Medium Laser > --- INVENTORY (8) ---- Light Nuclear Core Medium Laser Peak State ------------ > --- POWER ------------ Light Angular Momentum Engine > --- PROPULSION ------- Aluminum Leg Makeshift Leg > --- UTILITY ---------- Scrap Engine Small Storage Unit Signal Interpreter Seismic Detector > --- WEAPON ----------- Medium Laser Beam Cannon Light Cannon > --- INVENTORY -------- Light Nuclear Core Medium Laser [Rating: 32] Favorites ----------- Power Ion Engine Engine Ion Engine Propulsion Aluminum Leg Treads Light Treads Leg Aluminum Leg Utility Small Storage Unit Device Seismic Detector Storage Small Storage Unit Processor Signal Interpreter Protection Light Armor Plating Weapon Assault Rifle Energy Gun Small Laser Energy Cannon Beam Cannon Ballistic Gun Assault Rifle Ballistic Cannon Light Cannon Build | -11 -10 -10 -10 -9 -7 ------- Run | Yrd Mat Min Sub Rec Fac Slots Evolved 6 | . . . . . 6 Power . | . . . . . . Propulsion 1 | . . . . . 1 Utility 4 | . . . . . 4 Weapon 1 | . . . . . 1 Parts Attached 21 | 8 5 . 4 1 3 Power 2 | 1 . . 1 . . Engine 2 | 1 . . 1 . . Core . | . . . . . . Reactor . | . . . . . . Propulsion 6 | 4 . . 1 1 . Treads 2 | 2 . . . . . Leg 4 | 2 . . 1 1 . Wheel . | . . . . . . Hover . | . . . . . . Flight . | . . . . . . Utility 7 | 1 3 . 1 . 2 Device 3 | . 1 . . . 2 Storage 2 | 1 . . 1 . . Processor 1 | . 1 . . . . Hackware . | . . . . . . Protection 1 | . 1 . . . . Artifact . | . . . . . . Weapon 6 | 2 2 . 1 . 1 Energy Gun 3 | 1 1 . . . 1 Energy Cannon 1 | . . . 1 . . Ballistic Gun 1 | 1 . . . . . Ballistic Cannon 1 | . 1 . . . . Launcher . | . . . . . . Special Weapon . | . . . . . . Impact Weapon . | . . . . . . Slashing Weapon . | . . . . . . Piercing Weapon . | . . . . . . Special Melee Weapon . | . . . . . . Unidentified Prototypes . | . . . . . . Parts Lost 8 | . 1 . 2 . 5 Power 2 | . 1 . . . 1 Propulsion 3 | . . . 1 . 2 Utility . | . . . . . . Weapon 3 | . . . 1 . 2 Highest Loss Streak 5 | . 1 . 2 . 5 To Critical Strikes . | . . . . . . Average Slot Usage (%) 95 | . 97 85 96 100 74 Engine 10 | . 12 . 12 14 6 Leg 27 | . 28 28 27 28 15 Device 2 | . 6 . . . 15 Storage 13 | . 14 14 14 14 7 Processor 10 | . 4 14 14 14 7 Energy Gun 3 | . 11 . . . 7 Energy Cannon 5 | . . . 6 14 7 Ballistic Gun 7 | . 14 14 7 . . Ballistic Cannon 10 | . 2 14 14 14 5 Naked Turns . | . . . . . . Heaviest Build 24 | 13 17 10 20 20 24 Greatest Support 30 | 20 20 20 30 30 30 Greatest Overweight (x) 3 | 3 . . 1 . . Average Overweight (x) . | . . . . . . Largest Inventory Capacity 8 | 8 8 8 8 8 8 Average Capacity 7 | 7 8 8 7 8 8 Most Carried 8 | 2 6 6 8 8 4 Average Carried 3 | 1 3 6 6 6 2 Final Capacity 8 | 8 8 8 8 8 8 Final Carried 7 | 2 6 6 7 6 2 Class Distribution -------------------- 74% | Mutant 23% | Scavenger-Mutant Dominant Class ---------------- Mutant | -10/Materials Mutant | -10/Mines Mutant | -10/Subcaves Scavenger-Mutant | -9/Recycling Scavenger-Gunner | -7/Factory Resources | -11 -10 -10 -10 -9 -7 ----------- Run | Yrd Mat Min Sub Rec Fac Matter Collected 720 | 331 225 1 133 30 . Remotely . | . . . . . . Salvage Created 653 | 131 205 . 74 193 50 Parts 35 | 8 13 . 5 8 1 Haulers Intercepted . | . . . . . . Recyclers Shooed 1 | 1 . . . . . Parts Field Recycled . | . . . . . . Retrieved Matter . | . . . . . . Parts Self-Destructed 6 | . . . 6 . . Prevented . | . . . . . . Kills | -11 -10 -10 -10 -9 -7 ------- Run | Yrd Mat Min Sub Rec Fac Combat Hostiles Destroyed 8 | . 4 . 2 1 1 Guns 2 | . 2 . . . . Cannons 6 | . 2 . 2 1 1 Classes Destroyed 10 | 3 2 . 2 1 2 Worker 3 | 2 1 . . . . Tunneler 2 | 2 . . . . . Recycler 1 | 1 . . . . . Operator 1 | . . . . . 1 Turret 2 | . . . 2 . . Watcher 2 | . 2 . . . . Grunt 4 | . 4 . . . . Sentry 1 | . . . . 1 . Programmer 1 | . . . . . 1 Subdweller 2 | . . . 2 . . Best Kill Streak 4 | 4 2 . 2 1 2 Combat Bots Only 2 | . 2 . 1 1 1 Max Kills in Single Turn 1 | 1 1 . 1 1 1 Gunslinging . | . . . . . . Exploded . | . . . . . . Melee . | . . . . . . Uniques/NPCs Destroyed . | . . . . . . Combat | -11 -10 -10 -10 -9 -7 -------- Run | Yrd Mat Min Sub Rec Fac Hostile Shots Fired 207 | . 63 . 68 . 76 Missed 92 | . 24 . 34 . 34 Damage Taken 1168 | . 453 . 270 . 445 Core 229 | . 113 . 59 . 57 Absorbed by Shields . | . . . . . . Core Remaining (%) 65 | 100 . . . 31 . Volleys Fired 95 | 17 42 1 19 5 11 Largest 3 | 2 2 2 2 2 3 Hottest 145 | 60 70 55 95 95 145 Shots Fired 185 | 31 84 2 34 10 24 Gun 118 | 31 68 1 7 . 11 Cannon 67 | . 16 1 27 10 13 Launcher . | . . . . . . Special . | . . . . . . Kinetic 111 | 17 58 2 26 5 3 Thermal 74 | 14 26 . 8 5 21 Explosive . | . . . . . . Electromagnetic . | . . . . . . Robot Hit Streak 10 | 7 6 3 3 10 8 Robot Miss Streak 7 | 2 7 . 2 1 2 Penetration Max . | . . . . . . Secondary Targets . | . . . . . . Shots Hit Robots 99 | 18 35 2 18 9 17 Core Hits 39 | 6 15 . 7 4 7 Critical Kills . | . . . . . . Critical Parts Destroyed . | . . . . . . Critical Strikes . | . . . . . . Melee Attacks . | . . . . . . Impact . | . . . . . . Slashing . | . . . . . . Piercing . | . . . . . . Sneak Attacks . | . . . . . . Combat Hostiles . | . . . . . . Follow-up Attacks . | . . . . . . Damage Inflicted 1602 | 216 548 43 307 188 300 Guns 775 | 216 388 12 62 . 97 Cannons 789 | . 160 19 245 162 203 Explosions . | . . . . . . Melee . | . . . . . . Ramming 38 | . . 12 . 26 . Kinetic 926 | 104 435 31 200 93 63 Thermal 638 | 112 113 . 107 69 237 Explosive . | . . . . . . Electromagnetic . | . . . . . . Impact . | . . . . . . Slashing . | . . . . . . Piercing . | . . . . . . Highest Corruption . | . . . . . . Average Corruption . | . . . . . . Corruption Purged . | . . . . . . Corruption Blocked . | . . . . . . Overload Shots . | . . . . . . Overflow Damage 6 | . . . 6 . . Projectiles 6 | . . . 6 . . Explosions . | . . . . . . Melee . | . . . . . . Knockbacks 4 | . 1 . 1 . 2 Impact . | . . . . . . Kinetic 4 | . 1 . 1 . 2 Secondary . | . . . . . . Self-Inflicted Damage . | . . . . . . Shots . | . . . . . . Rammed . | . . . . . . Targets Rammed 6 | . . 3 . 3 . Kicked 6 | . . 3 . 3 . Crushed . | . . . . . . Highest Temperature 363 | . 174 . 11 78 363 Average Temperature 74 | . 44 . 5 29 227 Received Heat Transfer 408 | . 210 . 114 . 84 Siege Activations . | . . . . . . Robots Corrupted . | . . . . . . Combat Hostiles . | . . . . . . Parts Fried . | . . . . . . Impact Corruptions . | . . . . . . Robots Melted . | . . . . . . Combat Hostiles . | . . . . . . Parts Melted 2 | . . . . . 2 Heat Transferred 1400 | 250 262 . 222 148 518 Parts Sabotaged . | . . . . . . Parts Stolen . | . . . . . . Parts Stripped . | . . . . . . Power Chain Reactions . | . . . . . . Alert | -11 -10 -10 -10 -9 -7 ------- Run | Yrd Mat Min Sub Rec Fac Peak Influence 441 | 20 133 26 . 441 194 Initial 436 | . 3 26 . 436 154 Average 85 | 3 42 17 . 281 165 Maximum Alert Level 2 | . . . . 2 . Low Security (%) 82 | 100 100 100 . 28 100 Level 1 8 | . . . . 35 . Level 2 8 | . . . . 35 . Level 3 . | . . . . . . Level 4 . | . . . . . . Level 5 . | . . . . . . High Security . | . . . . . . Max Security . | . . . . . . Squads Dispatched 2 | . 1 . . . 1 Investigation 1 | . 1 . . . . Extermination . | . . . . . . Reinforcement 1 | . . . . . 1 Assault . | . . . . . . Garrison . | . . . . . . Intercept . | . . . . . . Searches Triggered . | . . . . . . Construction Impeded . | . . . . . . Haulers Reinforced . | . . . . . . Active Scanning Responses . | . . . . . . Cargo Convoy Interrupts . | . . . . . . Stealth | -11 -10 -10 -10 -9 -7 --------- Run | Yrd Mat Min Sub Rec Fac Distress Signals 2 | . 2 . . . . Communications Jammed . | . . . . . . Distress Signals . | . . . . . . Times Spotted 85 | . 17 . 64 1 3 Peak Tracking Total 7 | . 7 . 6 1 3 Tactical Retreats 4 | . 1 . 3 . . Traps | -11 -10 -10 -10 -9 -7 ------- Run | Yrd Mat Min Sub Rec Fac Traps Triggered . | . . . . . . Indirectly . | . . . . . . Trap Hack Attempts . | . . . . . . Triggered . | . . . . . . Disarmed . | . . . . . . Reprogrammed . | . . . . . . Reused . | . . . . . . Traps Extracted . | . . . . . . Installed . | . . . . . . Triggered . | . . . . . . Machines | -11 -10 -10 -10 -9 -7 ---------- Run | Yrd Mat Min Sub Rec Fac Machines Disabled 4 | . 2 . 2 . . Max in Single Turn 1 | . 1 . 1 . . Machines Repaired . | . . . . . . Machines Dismantled . | . . . . . . Machines Sabotaged . | . . . . . . Overloaded Fab Kills . | . . . . . . Hacking | -11 -10 -10 -10 -9 -7 --------- Run | Yrd Mat Min Sub Rec Fac Machines Accessed 9 | . 3 . . 6 . Terminals 8 | . 3 . . 5 . Fabricators . | . . . . . . Repair Stations . | . . . . . . Recycling Units 1 | . . . . 1 . Scanalyzers . | . . . . . . Garrison Access . | . . . . . . Total Hacks 25 | . 8 . . 17 . Successful 11 | . 3 . . 8 . Failed 14 | . 5 . . 9 . Catastrophic 2 | . . . . 2 . Database Lockouts . | . . . . . . Manual 4 | . . . . 4 . Terminals 23 | . 8 . . 15 . Fabricators . | . . . . . . Repair Stations . | . . . . . . Recycling Units 2 | . . . . 2 . Scanalyzers . | . . . . . . Garrison Access . | . . . . . . Terminal Hacks 10 | . 3 . . 7 . Part Schematic 1 | . . . . 1 . Robot Analysis 1 | . . . . 1 . Emergency Access Points 1 | . 1 . . . . Alert Level 1 | . . . . 1 . Locate Traps 2 | . 2 . . . . Dispatch Records 1 | . . . . 1 . Zone Layout 3 | . . . . 3 . Fabricator Hacks . | . . . . . . Repair Station Hacks . | . . . . . . Recycling Unit Hacks 1 | . . . . 1 . Report Inventory 1 | . . . . 1 . Scanalyzer . | . . . . . . Garrison Access Hacks . | . . . . . . Unauthorized Hacks . | . . . . . . Terminals . | . . . . . . Fabricators . | . . . . . . Repair Stations . | . . . . . . Recycling Units . | . . . . . . Scanalyzers . | . . . . . . Garrison Access . | . . . . . . Data Cores Recovered . | . . . . . . Used . | . . . . . . Hacking Detections 8 | . 3 . . 5 . Full Trace Events 3 | . 1 . . 2 . Feedback Events . | . . . . . . Feedback Blocked . | . . . . . . Robot Schematics Acquired . | . . . . . . Robots Built . | . . . . . . Authchips . | . . . . . . Time . | . . . . . . Total Robot Build Rating . | . . . . . . Part Schematics Acquired 1 | . . . . 1 . Parts Built . | . . . . . . Authchips . | . . . . . . Time . | . . . . . . Total Part Build Rating . | . . . . . . Parts Repaired . | . . . . . . Time . | . . . . . . Parts Recycled . | . . . . . . Recycled Matter . | . . . . . . Retrieved Matter . | . . . . . . Retrieved Components . | . . . . . . Parts Scanalyzed . | . . . . . . Part Schematics Acquired . | . . . . . . Parts Damaged . | . . . . . . Bothacking | -11 -10 -10 -10 -9 -7 ------------ Run | Yrd Mat Min Sub Rec Fac Used RIF Installer . | . . . . . . Robots Hacked . | . . . . . . Non-combat . | . . . . . . Combat . | . . . . . . Robot Hacks Applied . | . . . . . . Relay Couplers Released . | . . . . . . Fabnet Peak Effective % . | . . . . . . Robots Rewired . | . . . . . . Allies Hacked . | . . . . . . Hacks Repelled . | . . . . . . Allies | -11 -10 -10 -10 -9 -7 -------- Run | Yrd Mat Min Sub Rec Fac Total Allies 5 | . . 5 . . . Largest Group 5 | . . 5 5 1 . Highest-Rated Group 82 | . . 82 82 16 . Highest-Rated Ally 31 | . . 31 31 16 . Total Orders . | . . . . . . Ally Attacks 34 | . . . 33 1 . Total Damage 412 | . . . 412 . . Kills 3 | . . . 3 . . Allies Corrupted . | . . . . . . Allies Melted . | . . . . . . Intel | -11 -10 -10 -10 -9 -7 ------- Run | Yrd Mat Min Sub Rec Fac Robot Analysis Total 1 | . . . . 1 . Derelict Logs Recovered 4 | . . 2 2 . . Drone Launches . | . . . . . . Drone Recoveries . | . . . . . . Exploration | -11 -10 -10 -10 -9 -7 ------------- Run | Yrd Mat Min Sub Rec Fac Turns Passed 4935 | 1829 971 583 297 1126 129 Spaces Moved 2235 | 550 349 267 176 822 71 Core 13 | 13 . . . . . Treads 3 | 3 . . . . . Legs 2219 | 534 349 267 176 822 71 Wheels . | . . . . . . Hover . | . . . . . . Flight . | . . . . . . Fastest Speed 50 | 50 120 120 120 130 130 Average Speed 124 | 120 120 120 127 130 130 Slowest Speed 200 | 200 120 120 190 130 130 Overloaded Moves . | . . . . . . Propulsion Burnouts . | . . . . . . Robots Hopped . | . . . . . . Cave-ins Triggered . | . . . . . . Exploration Rate (%) 46 | 57 55 52 12 99 5 Regions Visited 5 Branch Regions 3 Pre-discovered Areas . | . . . . . . Known Exits Taken 4 | . 1 1 1 1 . Unknown Exits Taken 1 | 1 . . . . . Scrap Searched 1 | . . . 1 . . Spaces Dug . | . . . . . . Terrain Destroyed . | . . . . . . Melee . | . . . . . . Projectile . | . . . . . . AOE . | . . . . . . Terrain Rammed . | . . . . . . Walls Destroyed . | . . . . . . Machines Disabled . | . . . . . . Actions | -11 -10 -10 -10 -9 -7 --------- Run | Yrd Mat Min Sub Rec Fac Total 4194 | 1680 818 527 214 870 85 Wait 1816 | 1104 412 257 12 31 . Move 2230 | 549 348 266 175 821 71 Hop . | . . . . . . Pick Up 7 | . 4 . 2 1 . Fast Attach 16 | 8 4 . 3 1 . Attach 5 | . 1 . 1 . 3 Detach 7 | 2 4 . . 1 . Swap . | . . . . . . Drop 8 | . 3 . 2 3 . Fire 95 | 17 42 1 19 5 11 Melee . | . . . . . . Ram . | . . . . . . Kick 6 | . . 3 . 3 . Crush . | . . . . . . Escape Stasis . | . . . . . . Rewire 4 | . . . . 4 . Trap . | . . . . . . Miscellaneous . | . . . . . . Route ------- -11/Scrapyard -10/Materials (discovered 3 exits: *Mat / *Min x2) -10/Mines (discovered 3 exits: *Mat x2 / *Sub) -10/Subcaves -9/Recycling -7/Factory History --------- Turn | Location | Event 28 | -11/Scrapyard | Discovered new exit (range 16) 1830 | -11/Scrapyard | Entered Materials 1831 | -10/Materials | Build established: Mutant 1851 | -10/Materials | Discovered new exit (range 7) 2543 | -10/Materials | Discovered new exit (range 13) 2566 | -10/Materials | Identified exit to Materials 2691 | -10/Materials | Discovered new exit (range 12) 2744 | -10/Materials | Identified exit to Mines 2801 | -10/Materials | Entered Mines 2824 | -10/Mines | Discovered exit to Materials (range 10) 3024 | -10/Mines | Discovered exit to Materials (range 11) 3038 | -10/Mines | Assisted by bots powering up and referring to "LRC-V3" 3039 | -10/Mines | Learned Materials stockpile data 3379 | -10/Mines | Discovered new exit (range 3) 3380 | -10/Mines | Identified exit to Subcaves 3384 | -10/Mines | Entered Subcaves 3384 | -10/Subcaves | Accompanied by 5 allies 3386 | -10/Subcaves | Learned location of 1 exit from Materials 3389 | -10/Subcaves | Led the pair of lost Derelicts to an unsafe place 3392 | -10/Subcaves | Learned Materials terminal intel 3457 | -10/Subcaves | Lost 3 allies 3544 | -10/Subcaves | Discovered new exit (range 9) 3547 | -10/Subcaves | Core integrity fell below 50% 3606 | -10/Subcaves | Identified exit to Recycling 3681 | -10/Subcaves | Entered Recycling 3681 | -9/Recycling | Accompanied by 1 ally 3696 | -9/Recycling | Found Scrap Engine 3976 | -9/Recycling | Build established: Scavenger-Mutant 4027 | -9/Recycling | Discovered new exit (range 12) 4049 | -9/Recycling | Identified exit to Factory 4807 | -9/Recycling | Entered Factory 4807 | -7/Factory | Evolved 6 slots: Propulsion x1, Utility x4, Weapon x1 4936 | -7/Factory | Self-destructed Last Messages --------------- O-24 Administrator uses terminal to summon reinforcements. ALERT: Hostiles spotted, dispatching reinforcements to Terminal F011. O-24 Administrator locks terminal. P-60 Hacker knocked back. Lgt. Cannon destroyed. Target Analyzer melted. Imp. Heat Sink melted. P-60 Hacker destroyed. Destroyed Hacking Suite. O-24 Administrator destroyed. Neutrino Reactor explodes. Terminal disabled. Neutrino Reactor explodes. Door malfunctions. Lgt. Angular Momentum Engine destroyed. Aluminum Leg destroyed. Beam Cannon destroyed. Mak. Leg destroyed. Map ----- +----------------------------------------------------+ | ???????????????????????????????????????????????# | | ?????????????????????????????????###########+### | | ???????????????????????????????? | | ???????????????????????????????? | | ??????????????????????????????? | | ??????????????????????????????? | | ??????????????????????????????? | | ??????????????????????????????? ! | | ??????????????????????????????? | | ????????????????????????????????""""""" !!! | | ??????????????????????????????? !! | | ????????????????????????????? """"""""" !! "" " | | ???????????????????????????? ""F" | | ???????????????????????????? """ | | ???????????????????????????????########## #### | | ????????????????????????????????????????# # | | ?????????????????##############?????????# # | | ?????????????????# #?????????# + "" | | ?????????????????# * = #?????????# # "" | | ?????????????????# #?????????# # "" | | ?????????????????# #########?# # | | ?????????????????# # ?# # | | ?????????????????# #""" ! # # | | ?????????????????# #"Y # # "" | | ?????????????????# #""" + # "Y | | ?????????????????# @ # """ # # "" | | ?????????????????# " # ! """ # # | | ?????????????????# % "T" #? """?# #### | | ?????????????????# % """ #?? ?# #??? | | ?????????????###+######Y################# #### | | ????????? % | | ????????? | | ????????? | | ?????????? | | ?????????? | | ???????????###################+############+###### | | ???????????????????????????? ???????????????????? | | ?????????????????????????? ????????????????????? | | ????????????????????????? ??????????????????????? | | ????????????????????????# ???????????????????????? | | ????????????????????????#????????????????????????? | | ?????????????????????????????????????????????????? | | ?????????????????????????????????????????????????? | | ?????????????????????????????????????????????????? | | ?????????????????????????????????????????????????? | | ?????????????????????????????????????????????????? | | ?????????????????????????????????????????????????? | | ?????????????????????????????????????????????????? | | ?????????????????????????????????????????????????? | | ?????????????????????????????????????????????????? | +----------------------------------------------------+ Best States ------------- Heat Dissipation 34 Energy Generation 18 Energy Capacity 250 Matter Stores 300 Matter Capacity 300 Sight Range 16 Terrain Scan Density 10 Armor Coverage 150 Evasion (%) 55 Recoil Reduction 2 Item Schematics ----------------- Hrd. Medium Armor Plating | -9/Recycling | Hacked Robot Schematics ------------------ None Fabricated ------------ Nothing Alien Tech Used ----------------- None Achievements -------------- None Challenges ------------ None Game ------ Seed PlatingSegregatorSpear Manual? 0 Play Time 00:27:13 Cumulative 10.6 hours Start 2024.08.03 @ 17:10:45 End 2024.08.03 @ 17:40:57 Sessions 1 Manual Loads 0 Difficulty Rogue Special Mode None Game No. 8 Rogue 8 Adventurer 0 Explorer 0 Win Type - Total 0 Types 0/0/0/0/0/0/0/0/0 Lore% 15 Gallery% 14 Achievement% 15 Wizard Run 0 Options --------- Layout 1 ASCII 0 Keyboard 1 Movement Numpad Keybinds 1 Fullscreen 1 Font 24/Smallcaps Map View 50x35 Zoom Use 0% Tactical HUD 0 Map Filters NONE Filters NONE Steam 0 RUN: bcdb28dd-ca3c-485a-a82a-dace1252a4cb